[Event "Live Chess"]
[Site "Chess.com"]
[Date "2023.05.21"]
[Round "-"]
[White "ClassyChameleon"]
[Black "Tilbs_12"]
[Result "0-1"]
[WhiteElo "1084"]
[BlackElo "1561"]
[TimeControl "300"]
[EndTime "18:56:46 PDT"]
[Termination "Tilbs_12 won by resignation"]

1. e4 {[%clk 0:04:58.6]} 1... c6 {[%clk 0:04:59]} 2. d4 {[%clk 0:04:56.6]} 2...
d5 {[%clk 0:04:57.9]} 3. exd5 {[%clk 0:04:55.9]} 3... cxd5 {[%clk 0:04:56.9]} 4.
Nf3 {[%clk 0:04:55.2]} 4... Bg4 {[%clk 0:04:55.1]} 5. Bb5+ {[%clk 0:04:52.9]}
5... Nc6 {[%clk 0:04:54.4]} 6. Bxc6+ {[%clk 0:04:51.9]} 6... bxc6 {[%clk
0:04:53.4]} 7. O-O {[%clk 0:04:50]} 7... e6 {[%clk 0:04:51.2]} 8. c3 {[%clk
0:04:47.8]} 8... Ne7 {[%clk 0:04:48.2]} 9. Nbd2 {[%clk 0:04:43.2]} 9... Ng6
{[%clk 0:04:43.7]} 10. Qa4 {[%clk 0:04:35.9]} 10... Qc7 {[%clk 0:04:35.8]} 11.
h3 {[%clk 0:04:22.5]} 11... Bxf3 {[%clk 0:04:34.4]} 12. Nxf3 {[%clk 0:04:21.7]}
12... Bd6 {[%clk 0:04:31.9]} 13. Bg5 {[%clk 0:04:00.2]} 13... O-O {[%clk
0:04:24.5]} 14. Rac1 {[%clk 0:03:50.7]} 14... e5 {[%clk 0:04:22.4]} 15. dxe5
{[%clk 0:03:45.6]} 15... Nxe5 {[%clk 0:04:20.4]} 16. Nxe5 {[%clk 0:03:43.2]}
16... Bxe5 {[%clk 0:04:19.2]} 17. Rfe1 {[%clk 0:03:26.8]} 17... h6 {[%clk
0:04:13]} 18. Bh4 {[%clk 0:03:23.4]} 18... g5 {[%clk 0:04:03.6]} 19. Bg3 {[%clk
0:03:22.3]} 19... Bxg3 {[%clk 0:04:02.2]} 20. fxg3 {[%clk 0:03:21.5]} 20... Rac8
{[%clk 0:03:52.7]} 21. c4 {[%clk 0:03:09.5]} 21... Qxg3 {[%clk 0:03:43.9]} 22.
cxd5 {[%clk 0:03:04.6]} 22... cxd5 {[%clk 0:03:38]} 23. Qd7 {[%clk 0:02:52.4]}
23... Rcd8 {[%clk 0:03:18.8]} 24. Qxa7 {[%clk 0:02:49.8]} 24... d4 {[%clk
0:03:12.3]} 25. a4 {[%clk 0:02:37.7]} 25... d3 {[%clk 0:03:09.5]} 26. Re3 {[%clk
0:02:30.8]} 26... Qf4 {[%clk 0:03:05.5]} 27. Rf1 {[%clk 0:02:15.5]} 27... Qd4
{[%clk 0:02:58.9]} 28. Qa6 {[%clk 0:02:00]} 28... Qxe3+ {[%clk 0:02:53.1]} 29.
Kh2 {[%clk 0:01:57.8]} 29... Qe6 {[%clk 0:02:46.5]} 30. Qxe6 {[%clk 0:01:53.8]}
30... fxe6 {[%clk 0:02:45.3]} 31. Rxf8+ {[%clk 0:01:53]} 31... Kxf8 {[%clk
0:02:44.1]} 32. b4 {[%clk 0:01:52.3]} 32... d2 {[%clk 0:02:42.7]} 33. a5 {[%clk
0:01:51.9]} 33... d1=Q {[%clk 0:02:41.2]} 34. a6 {[%clk 0:01:51.6]} 34... Qd6+
{[%clk 0:02:38.2]} 0-1

[Event "Live Chess"]
[Site "Chess.com"]
[Date "2023.05.21"]
[Round "-"]
[White "Conradical12"]
[Black "grillage"]
[Result "1-0"]
[WhiteElo "1663"]
[BlackElo "1807"]
[TimeControl "300"]
[EndTime "18:56:59 PDT"]
[Termination "Conradical12 won by checkmate"]

1. e4 {[%clk 0:04:54.4]} 1... d5 {[%clk 0:04:58.1]} 2. exd5 {[%clk 0:04:53]}
2... Qxd5 {[%clk 0:04:57.2]} 3. Nc3 {[%clk 0:04:51.5]} 3... Qd8 {[%clk
0:04:55.8]} 4. Nf3 {[%clk 0:04:49.9]} 4... Nf6 {[%clk 0:04:54.3]} 5. Bc4 {[%clk
0:04:48.9]} 5... a6 {[%clk 0:04:53.3]} 6. O-O {[%clk 0:04:47.1]} 6... Bg4 {[%clk
0:04:46.1]} 7. Ne5 {[%clk 0:04:43.8]} 7... Be6 {[%clk 0:04:33.6]} 8. Bxe6 {[%clk
0:04:41.4]} 8... fxe6 {[%clk 0:04:32.8]} 9. Qf3 {[%clk 0:04:38.7]} 9... c6
{[%clk 0:04:22.7]} 10. Re1 {[%clk 0:04:35.5]} 10... Nbd7 {[%clk 0:04:12.6]} 11.
Nd3 {[%clk 0:04:28.8]} 11... e5 {[%clk 0:04:02.1]} 12. Nxe5 {[%clk 0:04:26.7]}
12... Nxe5 {[%clk 0:04:01.4]} 13. Rxe5 {[%clk 0:04:25.9]} 13... Qd6 {[%clk
0:03:52.3]} 14. Re1 {[%clk 0:04:22.4]} 14... O-O-O {[%clk 0:03:51]} 15. d3
{[%clk 0:04:17]} 15... h6 {[%clk 0:03:41.3]} 16. Bf4 {[%clk 0:04:11.9]} 16...
Qd7 {[%clk 0:03:38.9]} 17. Bg3 {[%clk 0:04:09.2]} 17... g5 {[%clk 0:03:33]} 18.
Qe3 {[%clk 0:03:57.3]} 18... Nd5 {[%clk 0:02:53.9]} 19. Nxd5 {[%clk 0:03:53.6]}
19... Qxd5 {[%clk 0:02:52.9]} 20. Qb6 {[%clk 0:03:50]} 20... e5 {[%clk
0:02:32.9]} 21. Rxe5 {[%clk 0:03:44.1]} 21... Qd4 {[%clk 0:02:23.9]} 22. Rc5
{[%clk 0:03:31.9]} 22... Bd6 {[%clk 0:02:16.6]} 23. Rxc6+ {[%clk 0:03:20.7]}
23... bxc6 {[%clk 0:02:12.6]} 24. Qxd4 {[%clk 0:03:18.9]} 24... Bxg3 {[%clk
0:02:11]} 25. Qg4+ {[%clk 0:03:17.6]} 25... Rd7 {[%clk 0:02:08.1]} 26. Qxg3
{[%clk 0:03:16.8]} 26... Rhd8 {[%clk 0:02:07.4]} 27. Qf3 {[%clk 0:03:12.2]}
27... Kc7 {[%clk 0:02:06.8]} 28. Re1 {[%clk 0:03:08.5]} 28... Kb7 {[%clk
0:01:54.8]} 29. Re4 {[%clk 0:03:05.6]} 29... Kc7 {[%clk 0:01:51.9]} 30. Rb4
{[%clk 0:03:00.7]} 30... Re7 {[%clk 0:01:48.7]} 31. Qg3+ {[%clk 0:02:56.9]}
31... Rd6 {[%clk 0:01:42.4]} 32. f3 {[%clk 0:02:51.9]} 32... Re6 {[%clk
0:01:30.6]} 33. c4 {[%clk 0:02:46.8]} 33... c5 {[%clk 0:01:24.7]} 34. Rb3 {[%clk
0:02:43.9]} 34... Kc6 {[%clk 0:01:21.2]} 35. f4 {[%clk 0:02:40.2]} 35... gxf4
{[%clk 0:01:15.3]} 36. Qf3+ {[%clk 0:02:38.5]} 36... Kd7 {[%clk 0:01:05.7]} 37.
Qb7+ {[%clk 0:02:35.5]} 37... Ke8 {[%clk 0:01:05.1]} 38. Qg7 {[%clk 0:02:24.6]}
38... Rb6 {[%clk 0:00:24.6]} 39. Rxb6 {[%clk 0:02:17.3]} 39... Rxb6 {[%clk
0:00:23.6]} 40. Qg8+ {[%clk 0:02:15.5]} 40... Kd7 {[%clk 0:00:22.8]} 41. Qf7+
{[%clk 0:02:14]} 41... Kc6 {[%clk 0:00:22]} 42. Qe6+ {[%clk 0:02:12.3]} 42...
Kb7 {[%clk 0:00:21.3]} 43. Qd7+ {[%clk 0:02:11.1]} 43... Ka8 {[%clk 0:00:19.4]}
44. Qc8+ {[%clk 0:02:09.3]} 44... Rb8 {[%clk 0:00:18.5]} 45. Qxa6# {[%clk
0:02:08.2]} 1-0

[Event "Live Chess"]
[Site "Chess.com"]
[Date "2023.05.21"]
[Round "-"]
[White "Biranidun"]
[Black "raminguy"]
[Result "1/2-1/2"]
[WhiteElo "2563"]
[BlackElo "1948"]
[TimeControl "300"]
[EndTime "18:57:31 PDT"]
[Termination "Game drawn by repetition"]

1. e4 {[%clk 0:04:59.5]} 1... e5 {[%clk 0:04:58.8]} 2. Nf3 {[%clk 0:04:58.6]}
2... Nc6 {[%clk 0:04:58.3]} 3. Bc4 {[%clk 0:04:57.5]} 3... Bc5 {[%clk
0:04:57.3]} 4. c3 {[%clk 0:04:56.6]} 4... Nf6 {[%clk 0:04:56.6]} 5. d4 {[%clk
0:04:56.3]} 5... exd4 {[%clk 0:04:56.4]} 6. b4 {[%clk 0:04:56]} 6... Be7 {[%clk
0:04:54.1]} 7. e5 {[%clk 0:04:55.2]} 7... Ne4 {[%clk 0:04:52.3]} 8. O-O {[%clk
0:04:44]} 8... Nxc3 {[%clk 0:04:47]} 9. Qb3 {[%clk 0:04:37.3]} 9... O-O {[%clk
0:04:44.2]} 10. Nxc3 {[%clk 0:04:36.1]} 10... dxc3 {[%clk 0:04:42.8]} 11. Bf4
{[%clk 0:04:30.3]} 11... Bxb4 {[%clk 0:04:37.8]} 12. Ng5 {[%clk 0:04:23.6]}
12... Qe7 {[%clk 0:04:26.5]} 13. Rfe1 {[%clk 0:04:18.3]} 13... Nd4 {[%clk
0:04:17.5]} 14. Qd1 {[%clk 0:04:14.3]} 14... Ne6 {[%clk 0:04:11.8]} 15. Qh5
{[%clk 0:04:11.5]} 15... h6 {[%clk 0:03:47.8]} 16. Ne4 {[%clk 0:03:37.9]} 16...
Nxf4 {[%clk 0:03:42.9]} 17. Qf5 {[%clk 0:03:30.2]} 17... d5 {[%clk 0:03:06.8]}
18. Qxf4 {[%clk 0:03:24.5]} 18... dxe4 {[%clk 0:03:02]} 19. Rxe4 {[%clk
0:03:21.7]} 19... Bc5 {[%clk 0:02:53.1]} 20. Bd3 {[%clk 0:03:19.2]} 20... Qe6
{[%clk 0:02:36]} 21. Rc4 {[%clk 0:03:16.9]} 21... Bb6 {[%clk 0:02:27.7]} 22. Qe4
{[%clk 0:03:10.3]} 22... Qg6 {[%clk 0:02:09]} 23. Qe2 {[%clk 0:03:04.8]} 23...
Bf5 {[%clk 0:02:03.9]} 24. Rxc3 {[%clk 0:02:55.6]} 24... Bxd3 {[%clk 0:02:01.6]}
25. Rxd3 {[%clk 0:02:55.5]} 25... Rfe8 {[%clk 0:01:59.8]} 26. Rg3 {[%clk
0:02:54.1]} 26... Qh7 {[%clk 0:01:50.7]} 27. Re1 {[%clk 0:02:52]} 27... Re6
{[%clk 0:01:46.6]} 28. Kh1 {[%clk 0:02:49.8]} 28... Rae8 {[%clk 0:01:45.9]} 29.
f4 {[%clk 0:02:49.2]} 29... Qf5 {[%clk 0:01:38.6]} 30. Qf3 {[%clk 0:02:37.3]}
30... f6 {[%clk 0:01:26.9]} 31. Qb3 {[%clk 0:02:23.3]} 31... Kh7 {[%clk
0:01:22.4]} 32. Rf3 {[%clk 0:02:16.2]} 32... fxe5 {[%clk 0:01:13.2]} 33. fxe5
{[%clk 0:02:16.1]} 33... Qg6 {[%clk 0:01:07.7]} 34. Rg3 {[%clk 0:02:08.3]} 34...
Qf5 {[%clk 0:01:06]} 35. Rf3 {[%clk 0:02:07.6]} 35... Qg6 {[%clk 0:01:05]} 36.
Rg3 {[%clk 0:02:07.2]} 36... Qf5 {[%clk 0:01:04.4]} 37. Rf3 {[%clk 0:02:06.8]}
1/2-1/2

[Event "Live Chess"]
[Site "Chess.com"]
[Date "2023.05.21"]
[Round "-"]
[White "alanmike75"]
[Black "xx_blindpuffin_xx"]
[Result "0-1"]
[WhiteElo "1582"]
[BlackElo "2200"]
[TimeControl "300"]
[EndTime "18:57:42 PDT"]
[Termination "xx_blindpuffin_xx won by resignation"]

1. e4 {[%clk 0:04:57.6]} 1... e6 {[%clk 0:04:59.3]} 2. d4 {[%clk 0:04:56.4]}
2... Ne7 {[%clk 0:04:58.2]} 3. Nf3 {[%clk 0:04:54.5]} 3... d5 {[%clk 0:04:57.6]}
4. e5 {[%clk 0:04:53.3]} 4... c5 {[%clk 0:04:52]} 5. c3 {[%clk 0:04:51.9]} 5...
Nec6 {[%clk 0:04:50.1]} 6. Be3 {[%clk 0:04:46.6]} 6... Qb6 {[%clk 0:04:42.3]} 7.
Qb3 {[%clk 0:04:45.3]} 7... c4 {[%clk 0:04:34.8]} 8. Qc2 {[%clk 0:04:41]} 8...
Be7 {[%clk 0:04:19.6]} 9. Be2 {[%clk 0:04:39]} 9... Nd7 {[%clk 0:04:15.1]} 10.
Nbd2 {[%clk 0:04:37.5]} 10... Qc7 {[%clk 0:04:07]} 11. O-O {[%clk 0:04:31.5]}
11... b5 {[%clk 0:04:03.6]} 12. b4 {[%clk 0:04:22]} 12... O-O {[%clk 0:03:50.2]}
13. Bg5 {[%clk 0:04:12.6]} 13... a5 {[%clk 0:03:45.4]} 14. a3 {[%clk 0:04:10.2]}
14... Bb7 {[%clk 0:03:41.6]} 15. Bxe7 {[%clk 0:04:05.6]} 15... Nxe7 {[%clk
0:03:37.4]} 16. Ng5 {[%clk 0:04:00.8]} 16... Ng6 {[%clk 0:03:33.7]} 17. h4
{[%clk 0:03:54.7]} 17... h6 {[%clk 0:03:26.8]} 18. Nxe6 {[%clk 0:03:28.1]} 18...
fxe6 {[%clk 0:03:21.5]} 19. Qxg6 {[%clk 0:03:25.9]} 19... Rae8 {[%clk
0:03:18.4]} 20. Bg4 {[%clk 0:03:18.7]} 20... Qc6 {[%clk 0:03:08.2]} 21. f4
{[%clk 0:03:04.7]} 21... Rf7 {[%clk 0:02:56.5]} 22. f5 {[%clk 0:02:55.4]} 22...
Nf8 {[%clk 0:02:33.3]} 23. Qh5 {[%clk 0:02:48.1]} 23... exf5 {[%clk 0:02:30.9]}
24. Rxf5 {[%clk 0:02:40.5]} 24... g6 {[%clk 0:02:22.5]} 0-1

[Event "Live Chess"]
[Site "Chess.com"]
[Date "2023.05.21"]
[Round "-"]
[White "Pablo_dmp"]
[Black "KeithArkell"]
[Result "0-1"]
[WhiteElo "1861"]
[BlackElo "2573"]
[TimeControl "300"]
[EndTime "18:58:02 PDT"]
[Termination "KeithArkell won by resignation"]

1. e4 {[%clk 0:04:57.6]} 1... e6 {[%clk 0:04:58.8]} 2. Nf3 {[%clk 0:04:55.3]}
2... d5 {[%clk 0:04:57.9]} 3. Nc3 {[%clk 0:04:54.3]} 3... dxe4 {[%clk
0:04:57.1]} 4. Nxe4 {[%clk 0:04:53.1]} 4... Nf6 {[%clk 0:04:55.9]} 5. Bd3 {[%clk
0:04:52]} 5... Nxe4 {[%clk 0:04:54.6]} 6. Bxe4 {[%clk 0:04:49.9]} 6... Nd7
{[%clk 0:04:54.2]} 7. c3 {[%clk 0:04:47.4]} 7... Nf6 {[%clk 0:04:51.4]} 8. Bc2
{[%clk 0:04:46.4]} 8... Bd6 {[%clk 0:04:49.7]} 9. d4 {[%clk 0:04:43.7]} 9... O-O
{[%clk 0:04:48.7]} 10. O-O {[%clk 0:04:30.8]} 10... c5 {[%clk 0:04:47.5]} 11.
dxc5 {[%clk 0:04:27.5]} 11... Bxc5 {[%clk 0:04:46.7]} 12. Qxd8 {[%clk
0:04:26.5]} 12... Rxd8 {[%clk 0:04:45.8]} 13. Bg5 {[%clk 0:04:24.8]} 13... b6
{[%clk 0:04:43.3]} 14. Rad1 {[%clk 0:04:21.6]} 14... Bb7 {[%clk 0:04:42.2]} 15.
Ne5 {[%clk 0:03:45.6]} 15... h6 {[%clk 0:04:33.9]} 16. Bxf6 {[%clk 0:03:38.5]}
16... gxf6 {[%clk 0:04:32.9]} 17. Ng4 {[%clk 0:03:37.4]} 17... Kg7 {[%clk
0:04:32.3]} 18. Rfe1 {[%clk 0:03:22.6]} 18... h5 {[%clk 0:04:30.7]} 19. Ne3
{[%clk 0:03:20.3]} 19... f5 {[%clk 0:04:29.6]} 20. Nc4 {[%clk 0:03:15.4]} 20...
Bd5 {[%clk 0:04:26.9]} 21. Bb3 {[%clk 0:03:09.1]} 21... a5 {[%clk 0:04:24.7]}
22. Nd2 {[%clk 0:03:02.7]} 22... a4 {[%clk 0:04:20.9]} 23. Bxd5 {[%clk
0:02:59.8]} 23... Rxd5 {[%clk 0:04:20]} 24. Nf3 {[%clk 0:02:45.6]} 24... Rad8
{[%clk 0:04:18.2]} 25. Rxd5 {[%clk 0:02:41.4]} 25... Rxd5 {[%clk 0:04:17]} 26.
g3 {[%clk 0:02:25.6]} 26... b5 {[%clk 0:04:14.3]} 27. a3 {[%clk 0:02:22]} 27...
Kf6 {[%clk 0:04:12]} 28. Kg2 {[%clk 0:02:18.4]} 28... e5 {[%clk 0:04:09.8]} 29.
h4 {[%clk 0:02:13.6]} 29... e4 {[%clk 0:04:08]} 30. Ng1 {[%clk 0:02:05]} 30...
Rd2 {[%clk 0:04:06.5]} 31. Re2 {[%clk 0:02:03.8]} 31... Rxe2 {[%clk 0:04:04.9]}
32. Nxe2 {[%clk 0:02:03.7]} 32... Ke5 {[%clk 0:04:04.3]} 33. f4+ {[%clk
0:01:59.5]} 33... Kd5 {[%clk 0:04:02.2]} 34. Kf1 {[%clk 0:01:52.7]} 34... Kc4
{[%clk 0:04:01.1]} 35. Nc1 {[%clk 0:01:49.2]} 35... Be3 {[%clk 0:03:58.4]} 36.
Na2 {[%clk 0:01:42.8]} 36... Kb3 {[%clk 0:03:56.9]} 37. Nb4 {[%clk 0:01:40.4]}
37... Kxb2 {[%clk 0:03:56.3]} 38. Nd5 {[%clk 0:01:37.3]} 38... Bc5 {[%clk
0:03:52.2]} 0-1

[Event "Live Chess"]
[Site "Chess.com"]
[Date "2023.05.21"]
[Round "-"]
[White "luckywookie"]
[Black "IgorSchukin"]
[Result "0-1"]
[WhiteElo "769"]
[BlackElo "1780"]
[TimeControl "300"]
[EndTime "18:58:08 PDT"]
[Termination "IgorSchukin won by checkmate"]

1. e4 {[%clk 0:04:58]} 1... c5 {[%clk 0:04:58.2]} 2. c3 {[%clk 0:04:56.3]} 2...
d6 {[%clk 0:04:56]} 3. d4 {[%clk 0:04:53.5]} 3... cxd4 {[%clk 0:04:54.7]} 4.
cxd4 {[%clk 0:04:51.7]} 4... Nf6 {[%clk 0:04:52.7]} 5. e5 {[%clk 0:04:44.5]}
5... dxe5 {[%clk 0:04:50.6]} 6. dxe5 {[%clk 0:04:41.6]} 6... Qxd1+ {[%clk
0:04:48.6]} 7. Kxd1 {[%clk 0:04:40.6]} 7... Ng4 {[%clk 0:04:46.9]} 8. Bb5+
{[%clk 0:04:32.8]} 8... Bd7 {[%clk 0:04:45.1]} 9. Bxd7+ {[%clk 0:04:29.8]} 9...
Nxd7 {[%clk 0:04:44]} 10. f3 {[%clk 0:04:29.3]} 10... Nf2+ {[%clk 0:04:41.8]}
11. Ke2 {[%clk 0:04:27.5]} 11... Nxh1 {[%clk 0:04:40.7]} 12. Nc3 {[%clk
0:04:24.4]} 12... Nxe5 {[%clk 0:04:39.4]} 13. Ne4 {[%clk 0:04:22.1]} 13... O-O-O
{[%clk 0:04:36.9]} 14. Be3 {[%clk 0:04:18.9]} 14... Kb8 {[%clk 0:04:32.5]} 15.
Nh3 {[%clk 0:04:18]} 15... Nc4 {[%clk 0:04:20.9]} 16. Rxh1 {[%clk 0:04:12.9]}
16... Nxb2 {[%clk 0:04:16.8]} 17. Bf4+ {[%clk 0:04:05.7]} 17... Ka8 {[%clk
0:04:14.4]} 18. Rc1 {[%clk 0:03:53.6]} 18... f6 {[%clk 0:04:12.7]} 19. Nd2
{[%clk 0:03:40]} 19... e5 {[%clk 0:04:08.9]} 20. Be3 {[%clk 0:03:36]} 20... Bb4
{[%clk 0:04:05]} 21. Nc4 {[%clk 0:03:25.3]} 21... Nd3 {[%clk 0:03:57.9]} 22. a3
{[%clk 0:03:15]} 22... Nxc1+ {[%clk 0:03:55.6]} 23. Bxc1 {[%clk 0:03:11.9]}
23... Bc5 {[%clk 0:03:53.1]} 24. Be3 {[%clk 0:03:07.1]} 24... Bxe3 {[%clk
0:03:51]} 25. Kxe3 {[%clk 0:03:06.5]} 25... Rd4 {[%clk 0:03:49.7]} 26. Nb2
{[%clk 0:02:59.6]} 26... Rc8 {[%clk 0:03:46.5]} 27. Nf2 {[%clk 0:02:59.5]} 27...
Rc3+ {[%clk 0:03:42.3]} 28. Nbd3 {[%clk 0:02:58.4]} 28... Rxa3 {[%clk
0:03:40.3]} 29. h4 {[%clk 0:02:56]} 29... f5 {[%clk 0:03:37.6]} 30. f4 {[%clk
0:02:53.9]} 30... Rdxd3+ {[%clk 0:03:27.7]} 31. Nxd3 {[%clk 0:02:52.5]} 31... e4
{[%clk 0:03:26.7]} 32. Kd4 {[%clk 0:02:47.5]} 32... Rxd3+ {[%clk 0:03:25]} 33.
Ke5 {[%clk 0:02:46.4]} 33... g6 {[%clk 0:03:21]} 34. Kf6 {[%clk 0:02:45.1]}
34... e3 {[%clk 0:03:19.7]} 35. Kg7 {[%clk 0:02:44.2]} 35... Rd7+ {[%clk
0:03:18.2]} 36. Kf6 {[%clk 0:02:42.6]} 36... e2 {[%clk 0:03:17.3]} 37. Ke6
{[%clk 0:02:41.8]} 37... Rd1 {[%clk 0:03:13.9]} 38. Kf6 {[%clk 0:02:40.5]} 38...
e1=Q {[%clk 0:03:12.3]} 39. Kg7 {[%clk 0:02:39.6]} 39... Qxh4 {[%clk 0:03:10.7]}
40. Kf7 {[%clk 0:02:35.8]} 40... Rd7+ {[%clk 0:03:08.5]} 41. Kg8 {[%clk
0:02:34.6]} 41... Qd8# {[%clk 0:03:06.8]} 0-1

[Event "Live Chess"]
[Site "Chess.com"]
[Date "2023.05.21"]
[Round "-"]
[White "LutherSullivan"]
[Black "ViktorTheCoolBoy"]
[Result "0-1"]
[WhiteElo "2099"]
[BlackElo "2515"]
[TimeControl "300"]
[EndTime "18:59:20 PDT"]
[Termination "ViktorTheCoolBoy won on time"]

1. d4 {[%clk 0:04:55]} 1... c5 {[%clk 0:04:59]} 2. d5 {[%clk 0:04:52.3]} 2... e6
{[%clk 0:04:58.5]} 3. Nc3 {[%clk 0:04:51.3]} 3... Nf6 {[%clk 0:04:55.1]} 4. e4
{[%clk 0:04:49.8]} 4... d6 {[%clk 0:04:54.4]} 5. Nf3 {[%clk 0:04:48]} 5... a6
{[%clk 0:04:53.6]} 6. a4 {[%clk 0:04:46.5]} 6... e5 {[%clk 0:04:52.5]} 7. Be2
{[%clk 0:04:43.9]} 7... Be7 {[%clk 0:04:51.5]} 8. O-O {[%clk 0:04:42]} 8... O-O
{[%clk 0:04:50.6]} 9. Ne1 {[%clk 0:04:35.3]} 9... Kh8 {[%clk 0:04:49.1]} 10. h3
{[%clk 0:04:28.1]} 10... Nbd7 {[%clk 0:04:46.1]} 11. Kh2 {[%clk 0:04:27.3]}
11... Ng8 {[%clk 0:04:44.6]} 12. g3 {[%clk 0:04:11.7]} 12... f5 {[%clk
0:04:33.9]} 13. exf5 {[%clk 0:04:08.5]} 13... Rxf5 {[%clk 0:04:32.1]} 14. Bg4
{[%clk 0:04:03]} 14... Rf8 {[%clk 0:04:30.2]} 15. Ng2 {[%clk 0:03:53.4]} 15...
Ngf6 {[%clk 0:04:21.6]} 16. Be6 {[%clk 0:03:32.8]} 16... c4 {[%clk 0:04:13]} 17.
f4 {[%clk 0:03:28.5]} 17... exf4 {[%clk 0:04:09.9]} 18. Nxf4 {[%clk 0:03:24.7]}
18... Nc5 {[%clk 0:04:07.7]} 19. Bxc8 {[%clk 0:03:11.5]} 19... Qxc8 {[%clk
0:04:07.6]} 20. Be3 {[%clk 0:03:07.9]} 20... Nfe4 {[%clk 0:03:50.9]} 21. Qh5
{[%clk 0:02:59.1]} 21... Kg8 {[%clk 0:03:43.4]} 22. Nxe4 {[%clk 0:02:18.3]}
22... Nxe4 {[%clk 0:03:41.6]} 23. Ne6 {[%clk 0:02:16.9]} 23... Rxf1 {[%clk
0:03:25.6]} 24. Rxf1 {[%clk 0:02:13.7]} 24... Qe8 {[%clk 0:03:24.5]} 25. Qg4
{[%clk 0:02:06.8]} 25... Qg6 {[%clk 0:03:23.4]} 26. Qxg6 {[%clk 0:01:27]} 26...
hxg6 {[%clk 0:03:21.1]} 27. Rf4 {[%clk 0:01:26.1]} 27... Nf6 {[%clk 0:03:18.8]}
28. Rd4 {[%clk 0:01:07.4]} 28... Rc8 {[%clk 0:03:15.3]} 29. g4 {[%clk
0:00:51.1]} 29... b5 {[%clk 0:03:12.8]} 30. axb5 {[%clk 0:00:47.1]} 30... axb5
{[%clk 0:03:12.7]} 31. g5 {[%clk 0:00:39.4]} 31... Nd7 {[%clk 0:03:11]} 32. h4
{[%clk 0:00:36.8]} 32... Ne5 {[%clk 0:03:09.6]} 33. Kg3 {[%clk 0:00:34.4]} 33...
Ra8 {[%clk 0:03:06.1]} 34. b3 {[%clk 0:00:27.7]} 34... Ra3 {[%clk 0:03:02.5]}
35. Kf4 {[%clk 0:00:18.6]} 35... cxb3 {[%clk 0:03:00.8]} 36. cxb3 {[%clk
0:00:16.6]} 36... Rxb3 {[%clk 0:03:00.7]} 37. Nc7 {[%clk 0:00:15]} 37... Rb1
{[%clk 0:02:52.3]} 38. Ke4 {[%clk 0:00:13.3]} 38... b4 {[%clk 0:02:48.8]} 39.
Na6 {[%clk 0:00:10.6]} 39... b3 {[%clk 0:02:47.6]} 40. Rb4 {[%clk 0:00:10.2]}
40... b2 {[%clk 0:02:42.9]} 41. Nb8 {[%clk 0:00:09.6]} 41... Rh1 {[%clk
0:02:40.5]} 42. Rxb2 {[%clk 0:00:07.9]} 42... Rxh4+ {[%clk 0:02:39.1]} 43. Bf4
{[%clk 0:00:07.5]} 43... Bxg5 {[%clk 0:02:38.3]} 44. Rf2 {[%clk 0:00:04.4]}
44... Bxf4 {[%clk 0:02:37.2]} 45. Rxf4 {[%clk 0:00:03.3]} 45... g5 {[%clk
0:02:37]} 46. Rxh4 {[%clk 0:00:00.9]} 46... gxh4 {[%clk 0:02:36.9]} 47. Kf4
{[%clk 0:00:00.3]} 47... g5+ {[%clk 0:02:34]} 0-1

[Event "Live Chess"]
[Site "Chess.com"]
[Date "2023.05.21"]
[Round "-"]
[White "KeithArkell"]
[Black "Biranidun"]
[Result "1/2-1/2"]
[WhiteElo "2573"]
[BlackElo "2563"]
[TimeControl "300"]
[EndTime "18:59:44 PDT"]
[Termination "Game drawn by agreement"]

1. d4 {[%clk 0:04:57.7]} 1... Nf6 {[%clk 0:04:58.8]} 2. Nf3 {[%clk 0:04:56.3]}
2... g6 {[%clk 0:04:57.8]} 3. c4 {[%clk 0:04:50.1]} 3... Bg7 {[%clk 0:04:57]} 4.
Nc3 {[%clk 0:04:49]} 4... O-O {[%clk 0:04:56.4]} 5. g3 {[%clk 0:04:48.4]} 5...
d5 {[%clk 0:04:54]} 6. cxd5 {[%clk 0:04:47.1]} 6... Nxd5 {[%clk 0:04:53.9]} 7.
Bg2 {[%clk 0:04:46.6]} 7... Nb6 {[%clk 0:04:52.8]} 8. O-O {[%clk 0:04:45.4]}
8... Nc6 {[%clk 0:04:52.5]} 9. e3 {[%clk 0:04:44.7]} 9... Re8 {[%clk 0:04:51.5]}
10. b3 {[%clk 0:04:43.8]} 10... e5 {[%clk 0:04:50.8]} 11. Nxe5 {[%clk
0:04:43.2]} 11... Nxe5 {[%clk 0:04:50.7]} 12. dxe5 {[%clk 0:04:42.7]} 12... Bxe5
{[%clk 0:04:50.5]} 13. Bb2 {[%clk 0:04:41.6]} 13... Qxd1 {[%clk 0:04:49.3]} 14.
Rfxd1 {[%clk 0:04:40.3]} 14... c6 {[%clk 0:04:48.8]} 15. Rd2 {[%clk 0:04:34.7]}
15... a5 {[%clk 0:04:47.8]} 16. Ne4 {[%clk 0:04:33]} 16... Bxb2 {[%clk
0:04:38.9]} 17. Rxb2 {[%clk 0:04:31.6]} 17... Kg7 {[%clk 0:04:36.9]} 18. Nc5
{[%clk 0:04:27.9]} 18... Re7 {[%clk 0:04:34.2]} 19. Rc1 {[%clk 0:04:26]} 19...
Nd7 {[%clk 0:04:31.7]} 20. a3 {[%clk 0:04:08.9]} 20... Nxc5 {[%clk 0:04:30.4]}
21. Rxc5 {[%clk 0:04:08.3]} 21... Be6 {[%clk 0:04:28.2]} 22. h4 {[%clk
0:04:06.6]} 22... Rd7 {[%clk 0:04:25.3]} 1/2-1/2

[Event "Live Chess"]
[Site "Chess.com"]
[Date "2023.05.21"]
[Round "-"]
[White "PaulyD81"]
[Black "KGreenGator"]
[Result "0-1"]
[WhiteElo "1202"]
[BlackElo "1803"]
[TimeControl "300"]
[EndTime "18:59:54 PDT"]
[Termination "KGreenGator won by checkmate"]

1. d4 {[%clk 0:04:58.5]} 1... Nf6 {[%clk 0:04:58]} 2. c4 {[%clk 0:04:56.9]} 2...
d5 {[%clk 0:04:55.4]} 3. Nc3 {[%clk 0:04:49.4]} 3... c6 {[%clk 0:04:50.6]} 4.
Nf3 {[%clk 0:04:47.5]} 4... dxc4 {[%clk 0:04:49.2]} 5. e3 {[%clk 0:04:45.2]}
5... b5 {[%clk 0:04:48.2]} 6. a4 {[%clk 0:04:42.2]} 6... Bd7 {[%clk 0:04:36.8]}
7. axb5 {[%clk 0:04:35.8]} 7... cxb5 {[%clk 0:04:34.9]} 8. b3 {[%clk 0:04:14.6]}
8... Qc8 {[%clk 0:04:30.3]} 9. bxc4 {[%clk 0:04:11.1]} 9... bxc4 {[%clk
0:04:29.1]} 10. Ne5 {[%clk 0:03:59.7]} 10... Be6 {[%clk 0:04:11.6]} 11. Qa4+
{[%clk 0:03:53.5]} 11... Nfd7 {[%clk 0:04:10.2]} 12. Nxc4 {[%clk 0:03:28.9]}
12... Bxc4 {[%clk 0:03:51.9]} 13. Qxc4 {[%clk 0:03:18.5]} 13... Qxc4 {[%clk
0:03:45.6]} 14. Bxc4 {[%clk 0:03:16.1]} 14... e6 {[%clk 0:03:45.1]} 15. O-O
{[%clk 0:03:03.7]} 15... Nb6 {[%clk 0:03:41.2]} 16. Bb5+ {[%clk 0:02:56.2]}
16... N6d7 {[%clk 0:03:35.9]} 17. Ba3 {[%clk 0:02:49.3]} 17... Bxa3 {[%clk
0:03:30.8]} 18. Rxa3 {[%clk 0:02:47.2]} 18... a6 {[%clk 0:03:30.5]} 19. Bd3
{[%clk 0:02:20.6]} 19... O-O {[%clk 0:03:22.4]} 20. Rb1 {[%clk 0:02:14.4]} 20...
Rc8 {[%clk 0:03:20.6]} 21. Rb7 {[%clk 0:02:02.4]} 21... g6 {[%clk 0:03:15.2]}
22. Be4 {[%clk 0:02:00.7]} 22... Nf6 {[%clk 0:03:10.4]} 23. Bf3 {[%clk
0:01:44.6]} 23... Nbd7 {[%clk 0:03:07.2]} 24. Rbb3 {[%clk 0:01:33.1]} 24... Ra7
{[%clk 0:03:03.3]} 25. Rb7 {[%clk 0:01:24]} 25... Rxb7 {[%clk 0:02:58.5]} 26.
Bxb7 {[%clk 0:01:23]} 26... Rb8 {[%clk 0:02:57.6]} 27. Bc6 {[%clk 0:01:09.6]}
27... Rb6 {[%clk 0:02:54.1]} 28. Ba8 {[%clk 0:00:54.4]} 28... Ne8 {[%clk
0:02:46]} 29. Na4 {[%clk 0:00:36.2]} 29... Rb1# {[%clk 0:02:42.8]} 0-1